bitfinex/quotes_ETHUSD_20240703
["timestamp","ask_amount","ask_price","bid_price","bid_amount"]
[1719971910855,4.8499,3394.5,3393.4,2.35751]
[1719971911036,4.409,3394.5,3393.3,2.35752]
[1719971911227,4.409,3394.5,3393.4,2.35748]
[1719971911433,4.409,3394.5,3393.6,2.35734]
[1719971911652,4.409,3394.5,3393.7,0.0589236]
[1719971911937,4.1147,3396.3,3395.0,2.35633]
[1719971912136,0.44624403,3396.2,3395.0,2.35633]
[1719971912592,0.44624403,3396.2,3394.5,2.35671]
[1719971912792,0.44624403,3396.2,3394.8,2.35654]
[1719971912972,0.44624403,3396.2,3394.6,2.35662]
[1719971913178,2.35571,3396.0,3394.4,2.35682]
[1719971913477,2.35571,3396.0,3394.7,2.3566]
[1719971913985,2.35571,3396.0,3394.5,2.35675]
[1719971914286,2.97970581,3395.9,3394.3,2.35688]
[1719971914469,2.35592,3395.7,3394.3,2.35688]
[1719971914643,2.35592,3395.7,3394.4,2.41573156]
[1719971915155,2.39132203,3395.8,3394.4,2.41573156]
[1719971915377,0.29797758,3395.7,3394.4,2.41573156]
[1719971915772,0.29797758,3395.7,3394.6,2.35668]
[1719971915973,0.29797758,3395.7,3394.7,0.0589081]
[1719971916862,0.03546203,3395.8,3394.7,0.0589081]
[1719971917053,0.03546203,3395.8,3394.6,2.35661]
[1719971917256,2.39132203,3395.8,3393.1,4.0688]
[1719971917558,4.1098,3395.6,3393.1,4.0688]
[1719971917907,3.30881116,3395.5,3393.2,0.46580143]
[1719971918082,6.88010975,3395.5,3394.2,2.35696]
[1719971918285,6.36991494,3395.5,3394.3,0.05891592]
[1719971918886,6.36991494,3395.5,3393.9,2.35712]
[1719971918887,2.35619,3395.4,3393.9,2.35712]
[1719971919107,1.28359049,3395.3,3394.0,2.35708]
[1719971919889,1.28359049,3395.3,3394.1,2.35702]
[1719971920098,1.28359049,3395.3,3394.2,2.41587861]
[1719971920270,0.06106848,3395.4,3394.3,0.05891711]
[1719971920475,0.06106848,3395.4,3394.3,2.35683]
[1719971920678,2.41719848,3395.4,3393.9,2.35711]
[1719971921205,2.86642982,3395.3,3393.7,2.35729]
[1719971921385,2.86648639,3395.2,3393.7,2.35729]
[1719971921591,0.51021639,3395.1,3393.7,2.35729]
[1719971921805,0.51021639,3395.0,3393.7,2.35729]
[1719971922162,0.51021639,3395.0,3393.3,2.35758]
[1719971922505,2.35673,3394.6,3392.8,2.35793]
[1719971922667,2.35683,3394.4,3392.9,2.35784]
[1719971922864,6.55217,3394.8,3393.0,2.4166548]
[1719971923068,6.55217,3394.8,3393.6,2.35735]
[1719971923069,0.51031905,3394.7,3393.6,2.35735]
[1719971923274,4.1956,3394.8,3393.7,0.05892645]
[1719971923965,4.1956,3394.8,3393.7,2.41621645]
[1719971924177,4.1956,3394.8,3393.8,2.41614578]
[1719971924382,4.0905,3395.4,3393.8,0.05892578]
[1719971924590,0.51018266,3395.3,3394.1,2.35701]
[1719971924808,4.0905,3395.4,3394.3,2.35683]
[1719971925101,4.0905,3395.4,3394.4,2.41573433]
[1719971925306,0.51014738,3395.3,3394.4,2.41573433]
[1719971925466,4.0905,3395.4,3394.4,2.41573433]
[1719971926681,4.0905,3395.4,3394.5,2.35674]
[1719971927299,4.0905,3395.4,3394.4,0.05891433]
[1719971927619,0.51016691,3395.3,3393.9,2.35715]
[1719971927911,0.51016691,3395.2,3393.9,2.35715]
[1719971928119,0.51016691,3395.3,3394.0,2.35709]
[1719971928438,0.51016691,3395.3,3393.1,4.1986]
[1719971928439,2.86649522,3395.2,3393.8,2.35721]
[1719971928587,0.51018522,3395.1,3393.9,2.35716]
[1719971928789,0.51018522,3395.1,3393.7,0.05892235]
[1719971928989,7.128,3396.0,3394.7,2.35658]
[1719971929204,1.40465213,3395.9,3394.7,2.35658]
[1719971929405,0.51012576,3395.8,3394.7,2.35658]
[1719971929598,0.51012576,3395.7,3394.7,2.35658]
[1719971929798,0.51011708,3395.6,3394.7,2.35658]
[1719971930117,2.3559,3395.8,3394.4,2.3568]
[1719971930282,4.13946389,3395.7,3394.4,2.3568]
[1719971930482,0.51012925,3395.6,3394.4,2.3568]
[1719971930682,0.51012925,3395.6,3394.2,2.35695]
[1719971930919,0.51012925,3395.6,3394.0,2.35708]
[1719971930920,0.51012925,3395.6,3394.5,2.35668]
[1719971931224,0.51012925,3395.6,3395.0,8.386036]
[1719971931389,3.60511328,3395.6,3395.0,8.386036]
[1719971931588,0.51012925,3395.5,3395.0,8.386036]
[1719971932904,0.73898403,3395.6,3395.0,8.386036]
[1719971933117,0.51014497,3395.5,3395.0,8.386036]
[1719971933403,5.34225848,3396.0,3395.0,10.742416]
[1719971933625,0.51009155,3395.9,3395.0,8.386036]
[1719971933856,4.15390158,3396.0,3395.0,8.386036]
[1719971933857,0.51009155,3395.8,3395.0,8.386036]
[1719971934003,4.15390158,3396.0,3395.0,10.742416]
[1719971934200,0.51004517,3395.9,3395.0,10.742416]
[1719971934503,4.15390158,3396.0,3395.0,10.742416]
[1719971934709,0.51004587,3395.9,3395.0,10.742416]
[1719971935046,4.15390158,3396.0,3395.0,10.742416]
[1719971935239,0.5100435,3395.9,3395.1,2.35632]
[1719971935438,0.02590158,3396.0,3395.1,3.72511248]
[1719971935618,0.02590158,3396.0,3395.3,2.35614]
[1719971935939,0.02590158,3396.0,3395.1,3.72511248]
[1719971936131,0.02590158,3396.0,3395.2,2.35626]
[1719971936844,0.02590158,3396.0,3395.3,2.41501818]
[1719971937424,0.02590158,3396.0,3395.0,8.386036]
[1719971937719,1.24016006,3396.0,3395.0,10.742436]
[1719971938103,1.51617512,3396.0,3395.0,8.386036]
[1719971938307,1.21425848,3395.8,3395.0,8.386036]
[1719971938511,1.21425848,3395.7,3395.0,8.386036]
[1719971939045,1.21425848,3395.5,3395.0,8.386036]
[1719971939272,1.52010016,3395.7,3395.0,8.386036]
[1719971939273,1.21425848,3395.6,3395.0,8.386036]
[1719971939543,1.21425848,3395.4,3395.0,8.386036]
[1719971939907,1.21425848,3395.3,3395.0,8.386036]
[1719971940431,1.21425848,3395.6,3395.1,2.35632]
[1719971940645,1.21425848,3395.4,3395.0,8.386036]
[1719971940812,1.21425848,3395.3,3395.0,8.386036]
[1719971941011,1.21425848,3395.2,3395.0,8.386036]
[1719971943670,1.21425848,3395.5,3395.0,8.137602]
[1719971943952,1.21425848,3395.7,3395.0,8.137602]
[1719971944165,0.02590158,3396.0,3395.0,8.137602]
[1719971944447,0.02590158,3396.0,3395.1,2.4152151]
[1719971944448,1.21586001,3395.9,3395.1,2.4152151]
[1719971944827,1.24176159,3396.0,3395.1,2.4152151]
[1719971945540,1.21586001,3395.9,3395.3,2.35616]
[1719971945844,1.21586001,3395.9,3395.0,8.137602]
[1719971945845,0.02590158,3396.0,3395.4,2.4150069]
[1719971946546,1.21586001,3396.2,3395.5,2.35604]
[1719971948469,1.21586001,3396.2,3395.6,2.41486447]
[1719971948767,1.21586001,3396.2,3395.8,2.3558]
[1719971948768,1.21551773,3396.2,3395.8,2.3558]
[1719971948941,1.21551773,3396.4,3395.9,2.41460798]
[1719971949258,1.21551773,3396.8,3396.0,2.35566]
[1719971949461,1.51969667,3397.0,3396.0,2.35566]
[1719971949462,1.21551773,3397.0,3396.4,2.35542]
[1719971949658,1.21551773,3397.2,3396.4,2.35542]
[1719971949959,1.21551773,3397.3,3396.4,2.35542]
[1719971950519,1.21551773,3397.3,3396.7,2.35521]
[1719971950720,1.21551773,3397.3,3395.8,4.2643]
[1719971950721,1.48903917,3397.3,3395.8,4.2643]
[1719971950921,1.21551773,3397.0,3395.8,2.35581]
[1719971951148,1.21551773,3397.0,3395.5,2.35605]
[1719971951455,1.21551773,3397.0,3395.2,6.8649]
[1719971951456,1.21551773,3396.6,3395.2,4.4819]
[1719971951655,1.21551773,3396.4,3395.3,2.35616]
[1719971951860,1.21551773,3396.4,3395.2,6.8381]
[1719971952044,2.02873511,3396.6,3395.2,6.8381]
[1719971952045,1.21551773,3396.5,3395.2,4.4819]
[1719971952220,1.21551773,3396.5,3395.0,10.493992]
[1719971952221,1.21551773,3396.5,3395.0,10.493972]
[1719971952531,1.21551773,3396.2,3395.3,2.35618]
[1719971952718,1.21551773,3396.3,3395.3,2.35618]
[1719971952919,1.51753883,3396.4,3395.3,2.35614]
[1719971952920,1.21551773,3396.2,3395.3,2.35614]
[1719971953115,1.21551773,3396.3,3395.3,2.35614]
[1719971953418,1.21551773,3396.4,3395.4,2.35612]
[1719971953638,1.21551773,3396.4,3395.7,2.3559]
[1719971953845,1.21551773,3396.4,3395.4,0.05889521]
[1719971953846,1.21551773,3396.7,3395.8,2.35583]
[1719971954045,1.21551773,3396.6,3395.9,0.05888772]
[1719971954256,1.21551773,3396.7,3396.1,2.35558]
[1719971954464,1.21551773,3397.0,3396.2,2.41444216]
[1719971954674,1.51617553,3397.0,3396.2,2.41444216]
[1719971954826,1.21551773,3397.1,3396.3,2.35548]
[1719971955027,1.21551773,3397.1,3396.4,2.35537]
[1719971955327,1.21551773,3397.1,3395.8,4.1328]
[1719971955328,1.21551773,3397.4,3396.7,2.35517]
[1719971955863,1.51765933,3397.6,3395.8,6.4886]
[1719971955864,1.21551773,3397.3,3396.3,2.35547]
[1719971956053,3.57044773,3397.2,3395.6,2.35592]
[1719971956231,1.21551773,3397.0,3395.8,2.35583]
[1719971956560,1.21551773,3396.7,3395.5,2.35605]
[1719971956766,1.21551773,3396.7,3395.4,2.35611]
[1719971956973,1.21551773,3396.6,3395.4,2.35611]
[1719971957497,1.21551773,3396.6,3395.1,2.35633]
[1719971957498,1.21551773,3396.4,3395.1,2.35633]
[1719971957645,0.24310355,3396.3,3395.1,2.35633]
[1719971957972,1.45862128,3396.3,3395.1,2.35633]
[1719971958266,1.45862128,3396.3,3395.2,2.35624]
[1719971958433,1.21551773,3396.3,3395.3,2.35619]
[1719971958632,1.51698558,3396.5,3395.3,2.35619]
[1719971958830,1.51698558,3396.5,3395.4,0.05889458]
[1719971958831,1.21358846,3396.4,3395.4,0.05889458]
[1719971959033,1.21358846,3396.4,3396.0,2.35565]
[1719971959262,2.35468,3397.5,3396.1,0.05888372]
[1719971959263,1.21358846,3396.9,3396.1,0.05888372]
[1719971959567,1.21358846,3397.1,3396.1,2.41451372]
[1719971959929,1.21358846,3397.1,3396.3,2.35547]
[1719971960128,1.21358846,3397.3,3396.5,2.35536]
[1719971960564,1.21358846,3397.4,3396.5,2.35536]
[1719971960729,1.51728528,3397.5,3396.5,2.35536]
[1719971960730,1.21358846,3397.3,3396.5,2.35536]
[1719971960931,1.21358846,3397.3,3396.3,2.35549]
[1719971961133,1.48667583,3397.3,3396.1,2.35564]
[1719971961367,1.48667583,3397.3,3395.9,2.35576]
[1719971961666,1.48561421,3397.3,3396.0,0.05888277]
[1719971961871,1.21252684,3397.3,3396.3,2.35548]
[1719971962058,6.50513,3397.7,3396.5,2.3553]
[1719971962059,1.21252684,3397.4,3396.5,2.3553]
[1719971962371,5.36312684,3397.7,3396.6,2.41413467]
[1719971962569,4.1506,3397.7,3396.6,2.41413467]
[1719971963135,1.21252684,3398.0,3396.6,0.05887467]
[1719971963432,4.3754,3398.4,3396.6,0.05887467]
[1719971963433,1.21252684,3397.9,3396.8,2.35511]
[1719971963665,0.27280943,3397.8,3396.9,0.05886941]
[1719971964328,1.21252684,3398.0,3396.9,0.05886941]
[1719971964329,1.21252684,3398.1,3396.9,0.05886941]
[1719971964780,3.56692684,3397.9,3396.4,2.35543]
[1719971965169,6.59434053,3397.8,3395.7,2.35591]
[1719971965373,6.59434053,3397.8,3394.5,2.502]
[1719971965374,1.21252684,3397.4,3395.2,4.3192]
[1719971965607,1.21252684,3397.5,3396.3,2.35549]
[1719971965874,1.21252684,3397.6,3396.4,0.05887768]
[1719971966188,2.35489,3397.2,3395.8,2.35579]
[1719971966745,2.35502,3397.0,3395.5,2.35603]
[1719971966933,0.878051,3396.9,3395.5,2.35603]
[1719971967332,8.69252684,3397.1,3395.3,1.2456802]
[1719971967333,8.69252684,3397.1,3395.6,2.41480778]
[1719971967553,8.69252684,3397.1,3395.6,0.05888778]
[1719971967554,7.48,3397.1,3395.6,0.05888778]
[1719971967780,7.48,3397.1,3396.4,2.35537]
[1719971967941,7.48,3397.1,3396.5,0.05887546]
[1719971968153,7.48,3397.1,3396.5,2.41423546]
[1719971968483,7.48,3397.1,3396.8,2.35515]
[1719971968664,7.48,3397.1,3396.8,2.41402163]
[1719971969288,7.48,3397.1,3396.9,2.35507]
[1719971969699,7.48,3397.1,3396.9,4.7101]
[1719971969862,7.48,3397.1,3396.5,0.24142355]
[1719971969863,7.48,3397.1,3396.7,2.35521]
[1719971970508,7.48,3397.1,3396.3,6.68189]
[1719971970661,7.48,3397.1,3396.3,2.35549]
[1719971970862,7.48,3397.1,3396.4,2.35541]
[1719971971098,7.48,3397.1,3396.7,2.35521]
[1719971971306,7.48,3397.1,3396.8,2.41396182]
[1719971971666,7.48,3397.1,3396.6,2.35529]
[1719971972096,7.48,3397.1,3396.7,0.05887166]
[1719971972262,7.48,3397.1,3396.8,2.3551]
[1719971972464,7.48,3397.1,3396.8,2.41397167]
[1719971972704,7.48,3397.1,3396.9,2.35508]
[1719971972858,7.48,3397.1,3397.0,2.35501]
[1719971974899,7.48,3397.1,3396.9,2.35508]
[1719971975514,7.48,3397.1,3396.2,3.0]
[1719971975660,7.48,3397.1,3396.3,0.535565]
[1719971975864,7.48,3397.1,3396.8,2.35514]
[1719971976296,7.48,3397.1,3396.8,2.41401187]
[1719971976811,7.48,3397.1,3396.8,2.35514]
[1719971977567,7.48,3397.1,3396.6,2.35528]
[1719971978067,7.48,3397.1,3396.0,2.3557]
[1719971978374,0.748,3397.0,3396.0,2.3557]
[1719971978763,7.48,3397.1,3396.1,2.35562]
[1719971978964,7.48,3397.1,3396.2,2.41442093]
[1719971979185,7.48,3397.1,3396.3,2.35549]
[1719971979398,7.48,3397.1,3396.4,0.05887977]
[1719971979613,7.48,3397.1,3396.4,2.41425977]
[1719971979764,7.48,3397.1,3396.4,0.05887977]
[1719971979974,8.228,3397.1,3395.8,2.35579]
[1719971980166,8.228,3397.1,3395.6,2.35598]
[1719971980405,8.228,3397.1,3395.7,2.3559]
[1719971980630,2.86491475,3397.0,3395.6,2.35598]
[1719971980803,2.86491475,3397.0,3395.1,5.548518]
[1719971980804,0.50989475,3396.9,3395.7,2.3559]
[1719971980973,2.12732713,3396.9,3395.5,2.35601]
[1719971981167,2.12732713,3396.9,3395.4,2.35606]
[1719971981168,0.5099262,3396.8,3395.4,2.35606]
[1719971981508,2.82886782,3396.9,3395.4,2.35606]
[1719971981681,0.50993023,3396.8,3395.5,2.35605]
[1719971981879,2.82886782,3396.9,3395.6,2.35598]
[1719971982098,1.21143544,3397.0,3395.7,0.05888801]
[1719971982420,7.48,3397.1,3395.8,0.0588766]
[1719971982764,7.48,3397.1,3396.4,2.35537]
[1719971983085,7.48,3397.1,3396.5,0.05887617]
[1719971983611,7.48,3397.1,3396.5,2.41421617]
[1719971983969,7.48,3397.1,3396.5,0.05887617]
[1719971984175,7.48,3397.1,3396.4,2.35537]
[1719971984885,7.48,3397.1,3396.2,2.35557]
[1719971985284,7.48,3397.1,3396.0,2.35569]
[1719971985494,8.69143544,3397.1,3396.0,2.35569]
[1719971986014,1.72130926,3397.0,3395.7,2.35591]
[1719971986167,1.72130926,3397.0,3395.3,1.2456802]
[1719971986168,1.21143544,3397.0,3395.5,2.35605]
[1719971986373,1.21143544,3396.9,3395.5,2.35605]
[1719971986673,1.21283917,3396.7,3395.5,2.35605]
[1719971986976,5.72542024,3396.7,3395.6,0.058888]
[1719971987207,5.40153917,3396.7,3395.7,2.35591]
[1719971987511,5.40153917,3396.7,3395.8,0.05888793]
[1719971988239,1.21283917,3396.6,3395.5,2.35604]
[1719971988403,1.21283917,3396.5,3395.5,2.35604]
[1719971988928,1.21283917,3396.5,3395.6,2.35597]
[1719971989648,1.21283917,3396.5,3395.0,12.316934]
[1719971989853,1.21283917,3396.5,3395.7,2.35591]
[1719971990139,1.21283917,3396.6,3395.8,0.05888625]
[1719971990428,1.21283917,3396.5,3396.0,2.3557]
[1719971990641,1.21283917,3396.6,3396.1,0.05888333]
[1719971991506,1.21283917,3396.6,3396.1,2.41450333]
[1719971991706,8.69283917,3396.7,3396.2,2.35555]
[1719971992026,8.69283917,3396.7,3396.3,0.05888033]
[1719971992027,7.48,3396.7,3396.3,0.05888033]
[1719971992225,8.69283917,3396.7,3396.3,0.05888033]
[1719971993412,8.69283917,3396.7,3395.5,2.356]
[1719971993413,7.48,3396.7,3396.6,2.35529]
[1719971993606,1.82317977,3397.3,3396.6,2.35529]
[1719971993607,1.21283917,3397.0,3396.6,2.35529]
[1719971993812,1.21283917,3397.0,3396.7,0.05887298]
[1719971994011,1.51931647,3397.1,3396.7,0.05887298]
[1719971994012,1.21283917,3397.1,3396.7,0.05887298]
[1719971994530,1.21547641,3397.1,3396.6,2.35529]
[1719971994741,1.21547641,3397.0,3396.6,2.35529]
[1719971994895,1.2154719,3397.2,3396.9,2.35508]
[1719971995093,8.6954719,3397.3,3397.0,2.35498]
[1719971995401,8.6954719,3397.3,3396.9,2.35507]
[1719971995756,1.2154719,3397.2,3396.9,2.35507]
[1719971995893,8.6954719,3397.3,3397.0,2.355]
[1719971996103,7.48,3397.3,3397.0,2.355]
[1719971996326,8.6954719,3397.3,3397.0,2.355]
[1719971997053,8.6954719,3397.3,3396.8,2.35511]
[1719971997219,8.6954719,3397.3,3396.6,2.35529]
[1719971997420,1.2154719,3397.1,3396.6,2.35529]
[1719971997605,1.2154719,3397.1,3396.5,2.35531]
[1719971998115,1.2154719,3397.1,3396.6,2.35529]
[1719971998626,1.2154719,3397.0,3396.6,4.71053]
[1719971998823,1.2154719,3397.1,3396.6,5.181583]
[1719971999229,1.2154719,3397.1,3396.7,2.3552]
[1719971999410,1.2154719,3397.2,3396.7,2.3552]
[1719971999624,1.2154719,3397.2,3396.8,2.35514]
[1719971999916,1.2154719,3397.2,3397.0,2.35501]
[1719972000122,1.2154719,3397.4,3397.0,2.32511]
[1719972000320,1.2154719,3397.3,3396.9,2.35502]
[1719972000554,1.2154719,3397.4,3396.9,4.71005]
[1719972000759,1.2154719,3397.4,3396.9,2.35502]
[1719972001284,1.2154719,3397.2,3396.3,2.35548]
[1719972001418,1.2154719,3397.2,3396.3,0.473548]
[1719972001625,9.30433575,3397.7,3396.8,2.35515]
[1719972001626,1.2154719,3397.3,3396.8,2.35515]
[1719972001852,1.2154719,3397.4,3396.8,2.35515]
[1719972002023,1.2154719,3397.3,3396.8,2.35515]
[1719972002223,1.2154719,3397.4,3396.8,2.35515]
[1719972002425,1.2154719,3397.3,3396.8,2.35515]
[1719972002659,1.5200373,3397.5,3396.3,0.473548]
[1719972002660,1.2154719,3397.4,3396.3,0.473548]
[1719972002961,1.2154719,3397.4,3396.7,2.35516]
[1719972003166,1.2154719,3397.3,3396.7,2.35516]
[1719972003363,1.2154719,3397.3,3396.5,2.35536]
[1719972003680,1.2154719,3397.3,3396.5,5.35536]
[1719972003888,1.2154719,3397.3,3396.6,0.05886955]
[1719972004176,1.2154719,3397.3,3396.7,0.36417833]
[1719972004322,1.2154719,3397.3,3397.0,2.355]
[1719972004526,1.2154719,3397.3,3396.8,2.35509]
[1719972004838,1.2154719,3397.3,3396.3,2.828998]
[1719972004839,1.2154719,3397.1,3396.0,2.35571]
[1719972005048,1.2154719,3396.8,3395.7,2.35591]
[1719972005254,1.2154719,3396.6,3395.6,2.35593]
[1719972005461,1.2154719,3396.5,3395.6,2.35593]
[1719972006133,1.2154719,3396.4,3395.6,2.35593]
[1719972006331,1.2154719,3396.3,3395.6,2.35593]
[1719972006757,1.2154719,3396.3,3395.6,2.35598]
[1719972007476,1.2154719,3396.2,3395.4,3.0]
[1719972007689,1.2154719,3396.2,3395.0,11.673274]
[1719972007690,1.2154719,3396.2,3395.2,2.35621]
[1719972007834,1.2154719,3395.9,3395.1,2.35633]
[1719972008173,1.2154719,3395.9,3395.2,2.35624]
[1719972008559,1.52017922,3396.1,3395.0,10.493972]
[1719972008560,1.2154719,3396.0,3395.0,10.493972]
[1719972008747,1.2154719,3396.0,3395.1,2.35632]
[1719972008951,1.21595291,3396.0,3395.1,2.35632]
[1719972010792,1.21595291,3396.2,3395.5,2.35599]
[1719972010945,1.21595291,3396.3,3395.5,2.35599]
[1719972011148,1.21595291,3396.3,3395.7,2.35586]
[1719972011362,1.21604301,3396.5,3395.8,0.53595971]
[1719972011537,1.21604301,3396.6,3395.3,2.35618]
[1719972011741,1.21604301,3396.4,3395.5,2.35605]
[1719972011992,1.82406452,3396.8,3395.1,4.2850452]
[1719972011993,1.21604301,3396.2,3395.1,4.2850452]
[1719972012150,1.21604301,3396.2,3395.3,2.35614]
[1719972012359,1.21604301,3396.3,3395.3,5.35614]
[1719972012554,1.21604301,3396.2,3395.0,8.137602]
[1719972012775,1.21604301,3396.1,3395.1,5.35633]
[1719972013097,1.21604301,3396.0,3395.1,3.0]
[1719972013273,1.21604301,3395.9,3395.0,8.137602]
[1719972014596,1.52005376,3396.0,3395.0,8.137602]
[1719972014597,1.21604301,3395.8,3395.0,8.137602]
[1719972014761,1.21604301,3395.9,3395.0,8.137602]
[1719972014968,1.21604301,3395.8,3395.0,8.137602]
[1719972015162,1.48957346,3395.8,3395.0,8.137602]
[1719972015368,1.21604301,3395.7,3395.0,8.137602]
[1719972015701,1.21604301,3395.5,3395.0,8.137602]
[1719972016864,1.21604301,3395.4,3395.0,8.137602]
[1719972017264,1.21387282,3395.4,3395.0,8.137602]
[1719972017471,1.21387282,3395.3,3395.0,8.137602]
[1719972017673,2.35592,3395.7,3395.0,8.137602]
[1719972017873,1.21331472,3395.4,3395.0,8.137602]
[1719972018991,1.21331472,3395.3,3395.0,8.137602]
[1719972019348,1.21331472,3395.6,3395.1,0.05890667]
[1719972019550,4.1792,3396.3,3395.1,0.05890667]
[1719972019551,1.21331472,3396.0,3395.1,0.05890667]
[1719972020062,1.21331472,3395.9,3395.1,0.05890667]
[1719972020260,1.21331472,3396.0,3395.2,1.05529787]
[1719972020852,1.21331472,3396.0,3395.1,0.05890026]
[1719972021690,2.35599,3395.6,3395.0,8.137602]
[1719972021987,1.21331472,3395.5,3395.0,8.137602]
[1719972022225,1.21331472,3395.7,3395.0,8.137602]
[1719972022429,1.21331472,3395.5,3395.0,8.137602]
[1719972022707,1.21331472,3395.7,3395.0,8.137602]
[1719972023773,1.21331472,3395.6,3395.0,8.137602]
[1719972024733,2.35607,3395.5,3395.0,8.137602]
[1719972025017,3.56938472,3395.5,3395.0,8.137602]
[1719972025183,1.21331472,3395.4,3395.0,8.137602]
[1719972025570,1.21331472,3395.3,3395.0,8.137602]
[1719972025889,10.04941472,3395.2,3395.0,8.137602]
[1719972026076,1.21331472,3395.1,3395.0,8.137602]
[1719972026275,10.04941472,3395.1,3395.0,8.137602]
[1719972027504,8.8361,3395.1,3395.0,8.137602]
[1719972028190,8.8361,3395.1,3395.0,10.494002]
[1719972028428,1.21331472,3396.6,3395.4,2.35606]
[1719972028576,1.21331472,3396.7,3395.5,2.35602]
[1719972028777,1.21331472,3396.6,3395.5,2.35602]
[1719972029123,4.17270737,3397.1,3395.5,2.35602]
[1719972029124,1.21331472,3396.7,3395.5,2.35602]
[1719972029415,1.21179662,3396.8,3395.6,0.0588892]
[1719972029710,1.21179662,3396.7,3395.6,2.4148492]
[1719972030015,1.21179662,3396.7,3395.6,2.59744492]
[1719972030340,1.21179662,3396.7,3395.5,2.35605]
[1719972030609,1.21179662,3396.7,3395.6,2.41484923]
[1719972030798,1.21179662,3396.8,3395.6,2.41484923]
[1719972030999,1.21179662,3396.7,3395.7,2.35589]
[1719972031237,1.81769493,3397.2,3395.8,3.08710368]
[1719972031238,1.21179662,3397.2,3395.8,3.08710368]
[1719972031391,1.81769493,3397.7,3396.8,2.35514]
[1719972031392,1.21179662,3397.5,3396.8,2.35514]
[1719972031733,1.21179662,3397.6,3396.5,2.35532]
[1719972031880,1.21179662,3397.5,3396.5,2.35532]
[1719972032285,1.21179662,3397.6,3396.5,2.35532]
[1719972032519,0.27272022,3397.5,3396.2,2.35556]
[1719972032972,0.27272022,3397.5,3396.3,2.35545]
[1719972033172,0.27272022,3397.5,3396.2,2.35556]
[1719972033573,3.83918684,3397.5,3395.9,5.35576]
[1719972033812,1.74725586,3397.4,3396.1,2.35557]
[1719972034115,1.21179662,3397.5,3396.2,2.41443906]
[1719972034299,1.21179662,3397.6,3396.2,2.41443906]
[1719972034502,6.66485,3397.9,3396.1,3.0]
[1719972034721,1.21207978,3397.7,3396.3,0.05887387]
[1719972034922,5.82549973,3397.9,3396.8,2.35513]
[1719972034923,1.21207978,3397.9,3396.8,2.35513]
[1719972035229,0.27271795,3397.8,3396.9,0.05886847]
[1719972035730,1.21207978,3398.0,3396.9,0.05886847]
[1719972035929,1.21207978,3398.0,3396.9,2.41394847]
[1719972036115,1.21207978,3398.0,3397.0,0.05886868]
[1719972037532,1.21207978,3398.0,3396.3,2.35544]
[1719972037533,3.56653978,3397.8,3396.3,2.35544]
[1719972037750,2.86271714,3397.7,3396.3,2.35544]
[1719972038051,1.21207978,3397.6,3396.0,4.2822]
[1719972038252,3.56681978,3397.4,3396.0,4.2822]
[1719972038543,1.51503165,3397.6,3395.3,6.63839]
[1719972038544,2.35505,3397.0,3395.3,6.63839]
[1719972038689,3.56712978,3397.0,3395.7,2.3559]
[1719972038894,0.235505,3396.9,3395.7,2.3559]
[1719972039546,0.235505,3396.9,3395.9,2.35576]
[1719972039696,1.21207978,3397.2,3396.0,0.05888502]
[1719972040031,1.21207978,3397.4,3396.6,2.35526]
[1719972040335,4.1629,3398.1,3396.4,6.63762]
[1719972040336,1.21207978,3397.8,3396.7,2.41408152]
[1719972040891,0.86381743,3398.0,3396.9,2.35508]
[1719972041142,2.07598965,3398.0,3397.0,0.05886838]
[1719972042409,0.86381743,3398.0,3397.1,2.35493]
[1719972042744,1.21217222,3398.1,3397.2,0.05886479]
[1719972042910,1.21217222,3398.2,3397.2,0.05886479]
[1719972043249,1.21217222,3398.1,3397.2,0.05886479]
[1719972043599,1.21217222,3398.2,3397.2,0.05886479]
[1719972043934,1.33672187,3398.2,3397.2,0.05886479]
[1719972044295,1.21217222,3398.4,3397.3,0.05886478]
[1719972044495,1.21217222,3398.5,3397.2,2.35483]
[1719972044809,1.21217222,3398.5,3397.3,2.3548]
[1719972045229,1.21217222,3398.4,3397.0,2.35501]
[1719972045534,3.56617222,3398.5,3397.3,2.3548]
[1719972045756,3.56617222,3398.5,3397.4,0.05886048]
[1719972045757,1.21217222,3398.5,3397.4,0.05886048]
[1719972046036,3.0,3398.5,3397.4,2.41355048]
[1719972046210,4.21217222,3398.6,3397.4,4.76822048]
[1719972046409,1.86876044,3398.6,3397.5,2.35466]
[1719972046724,0.65658822,3398.6,3397.6,0.05885789]
[1719972047229,1.21217222,3398.9,3397.6,0.05885789]
[1719972047537,4.4573,3399.0,3397.6,0.05885789]
[1719972047699,4.4573,3399.0,3397.8,2.35445]
[1719972047899,4.4573,3399.0,3397.9,0.05885323]
[1719972048312,8.02310222,3399.0,3397.4,6.52751]
[1719972048514,3.30755145,3398.9,3397.4,6.52751]
[1719972049102,0.95382145,3398.9,3397.6,2.35454]
[1719972049614,0.95382145,3398.9,3397.4,4.1728]
[1719972049615,2.35385,3398.7,3397.4,4.1728]
[1719972050601,2.35399,3398.5,3397.2,2.35487]
[1719972050820,0.33076714,3398.6,3397.3,2.41366159]
[1719972051147,0.95382145,3398.9,3397.3,2.41366159]
[1719972051302,0.95382145,3398.9,3397.6,2.35459]
[1719972051644,0.95382145,3398.9,3397.7,0.058855]
[1719972052353,1.21217222,3399.2,3397.9,2.35433]
[1719972052354,2.3535,3399.2,3397.9,2.35433]
[1719972052824,2.3535,3399.2,3397.2,3.2907081]
[1719972052825,2.3537,3399.0,3397.4,2.35473]
[1719972053154,2.35371,3398.9,3397.6,2.35455]
[1719972053524,2.35356,3399.1,3397.7,2.41337488]
[1719972053727,2.35356,3399.1,3397.8,2.41325176]
[1719972053965,3.24535561,3399.1,3397.8,2.3544]
[1719972054256,3.0,3399.0,3397.8,2.3544]
[1719972054771,5.35365,3399.0,3397.6,2.35458]
[1719972054945,5.35365,3399.0,3397.7,2.35453]
[1719972055264,2.3537,3398.9,3396.9,4.4135]
[1719972055450,2.3537,3398.9,3397.0,2.355]
[1719972055451,2.35419,3398.2,3397.0,2.355]
[1719972056366,2.35419,3398.2,3396.9,4.4135]
[1719972056570,4.0606,3398.5,3396.5,2.35536]
[1719972056741,2.35458,3397.7,3396.3,2.35549]